[Event "LJ Slovak Open 2022"]
[Site "Liptovsky Jan"]
[Date "2022.06.24"]
[Round "3.54"]
[White "Socha, Wiktor"]
[Black "Bodnar, Frantisek"]
[Result "1-0"]
[ECO "C40"]
[WhiteElo "1020"]
[BlackElo "1379"]
[Annotator "NA RC"]
[PlyCount "65"]
[EventDate "2022.06.23"]
[EventType "swiss"]
[EventCountry "SVK"]
[SourceTitle "playchess.com"]
[Source "ChessBase"]
[SourceQuality "1"]
[TimeControl "3600+30"]

1. e4 {[%emt 0:00:06]} e5 {[%emt 0:01:53]} 2. Nf3 {[%emt 0:00:30]} Bc5 {[%emt 0:00:30]} 3. c3 {[%emt 0:00:30]} Nf6 {[%emt 0:00:29]} 4. d4 {[%emt 0:01:22]} exd4 {[%emt 0:00:49]} 5. cxd4 {[%emt 0:00:27]} Bb4+ {[%emt 0:01:14]} 6. Bd2 {[%emt 0:01:12]} Qe7 {[%emt 0:00:42]} 7. Bd3 {[%emt 0:02:06]} Nc6 {[%emt 0:04:54]} 8. a3 {[%emt 0:02:05]} Bxd2+ {[%emt 0:00:56]} 9. Nbxd2 {[%emt 0:00:22]} d6 {[%emt 0:01:51]} 10. O-O {[%emt 0:02:18]} O-O {[%emt 0:00:08]} 11. Re1 {[%emt 0:02:04]} Bg4 {[%emt 0:01:34]} 12. h3 {[%emt 0:02:19]} Bh5 {[%emt 0:00:30]} 13. e5 {[%emt 0:03:57]} dxe5 {[%emt 0:00:30]} 14. dxe5 {[%emt 0:01:01]} Nd7 {[%emt 0:05:59]} 15. g4 {[%emt 0:01:10]} Bg6 {[%emt 0:01:47]} 16. Bxg6 {[%emt 0:01:32]} fxg6 {[%emt 0:00:18]} 17. Qb3+ {[%emt 0:02:24]} Kh8 {[%emt 0:00:58]} 18. Nc4 {[%emt 0:02:06]} Nc5 {[%emt 0:01:40]} 19. Qe3 {[%emt 0:03:26]} Rad8 {[%emt 0:02:16]} 20. b4 {[%emt 0:01:15]} Rd3 {[%emt 0:03:03]} 21. Qxc5 {[%emt 0:01:47]} Qxc5 {[%emt 0:01:42]} 22. bxc5 {[%emt 0:00:11]} Rdxf3 {[%emt 0:00:14]} 23. Rab1 {[%emt 0:02:18]} b6 {[%emt 0:03:12]} 24. cxb6 {[%emt 0:01:24]} cxb6 {[%emt 0:01:05]} 25. Nd6 {[%emt 0:00:41]} Rxf2 {[%emt 0:00:35]} 26. e6 {[%emt 0:01:19]} Ne7 {[%emt 0:01:03]} 27. Rbc1 {[%emt 0:00:46]} Rd2 {[%emt 0:03:23]} 28. Rc7 {[%emt 0:00:36]} Rxd6 {[%emt 0:01:49]} 29. Rxe7 {[%emt 0:00:05]} a5 {[%emt 0:00:50]} 30. Rd7 {[%emt 0:00:12]} Rc6 {[%emt 0:00:30]} 31. e7 {[%emt 0:00:27]} Re8 {[%emt 0:00:05]} 32. Rd8 {[%emt 0:00:08]} Rc8 {[%emt 0:00:20]} 33. Rxc8 {[%emt 0:00:52]} 1-0

[Event "LJ Slovak Open 2022"]
[Site "Liptovsky Jan"]
[Date "2022.06.24"]
[Round "3.55"]
[White "Vojtko, Imrich"]
[Black "Magdova, Lucia"]
[Result "1-0"]
[ECO "A06"]
[WhiteElo "1382"]
[BlackElo "1055"]
[Annotator "NA RC"]
[PlyCount "55"]
[EventDate "2022.06.23"]
[EventType "swiss"]
[EventCountry "SVK"]
[SourceTitle "playchess.com"]
[Source "ChessBase"]
[SourceQuality "1"]
[TimeControl "3600+30"]

1. Nf3 {[%emt 0:00:24]} d5 {[%emt 0:00:37]} 2. e3 {[%emt 0:00:22]} Nc6 {[%emt 0:00:15]} 3. c3 {[%emt 0:00:15]} e5 {[%emt 0:01:07]} 4. Bb5 {[%emt 0:00:39]} Nf6 {[%emt 0:04:04]} 5. Nxe5 {[%emt 0:01:18]} Qd6 {[%emt 0:05:23]} 6. d4 {[%emt 0:03:42]} a6 {[%emt 0:05:52]} 7. Nxc6 {[%emt 0:01:29]} axb5 {[%emt 0:03:17]} 8. Ne5 {[%emt 0:00:24]} Be7 {[%emt 0:03:01]} 9. b4 {[%emt 0:01:59]} O-O {[%emt 0:02:01]} 10. Nd2 {[%emt 0:01:35]} Bf5 {[%emt 0:01:32]} 11. O-O {[%emt 0:03:55]} h6 {[%emt 0:03:53]} 12. h3 {[%emt 0:01:38]} Ne4 {[%emt 0:03:15]} 13. Qf3 {[%emt 0:00:51]} Nxd2 {[%emt 0:05:37]} 14. Bxd2 {[%emt 0:00:11]} Be4 {[%emt 0:03:07]} 15. Qe2 {[%emt 0:01:20]} c6 {[%emt 0:01:58]} 16. f3 {[%emt 0:01:09]} Bf5 {[%emt 0:02:55]} 17. e4 {[%emt 0:00:36]} Be6 {[%emt 0:02:18]} 18. Qf2 {[%emt 0:01:06]} dxe4 {[%emt 0:02:22]} 19. fxe4 {[%emt 0:00:44]} Bxa2 {[%emt 0:02:20]} 20. Bf4 {[%emt 0:00:24]} Be6 {[%emt 0:06:09]} 21. Qg3 {[%emt 0:01:15]} g5 {[%emt 0:05:04]} 22. Rxa8 {[%emt 0:00:48]} Rxa8 {[%emt 0:00:13]} 23. Nxf7 {[%emt 0:01:58]} Qd7 {[%emt 0:01:32]} 24. Nxh6+ {[%emt 0:02:05]} Kf8 {[%emt 0:00:42]} 25. Bxg5+ {[%emt 0:00:18]} Ke8 {[%emt 0:00:18]} 26. Bxe7 {[%emt 0:01:40]} Qxe7 {[%emt 0:01:28]} 27. Ng8 {[%emt 0:03:24]} Qd8 {[%emt 0:02:24]} 28. Qg7 {[%emt 0:02:29]} 1-0

[Event "LJ Slovak Open 2022"]
[Site "Liptovsky Jan"]
[Date "2022.06.24"]
[Round "3.56"]
[White "Carnecky, Michal"]
[Black "Sotnik, Simon"]
[Result "1-0"]
[ECO "A22"]
[WhiteElo "1361"]
[BlackElo "1038"]
[Annotator "NA RC"]
[PlyCount "51"]
[EventDate "2022.06.23"]
[EventType "swiss"]
[EventCountry "SVK"]
[SourceTitle "playchess.com"]
[Source "ChessBase"]
[SourceQuality "1"]
[TimeControl "3600+30"]

1. c4 {[%emt 0:00:06]} e5 {[%emt 0:01:06]} 2. Nc3 {[%emt 0:00:16]} Nf6 {[%emt 0:00:38]} 3. d3 {[%emt 0:00:22]} Bb4 {[%emt 0:00:37]} 4. Bd2 {[%emt 0:01:04]} Bxc3 {[%emt 0:00:27]} 5. Bxc3 {[%emt 0:00:18]} Nc6 {[%emt 0:01:20]} 6. e3 {[%emt 0:00:56]} d5 {[%emt 0:00:59]} 7. cxd5 {[%emt 0:00:54]} Nxd5 {[%emt 0:00:11]} 8. Nf3 {[%emt 0:00:36]} Bg4 {[%emt 0:01:16]} 9. Be2 {[%emt 0:00:24]} Bxf3 {[%emt 0:00:50]} 10. Bxf3 {[%emt 0:00:13]} Nxc3 {[%emt 0:00:29]} 11. Bxc6+ {[%emt 0:00:36]} bxc6 {[%emt 0:00:38]} 12. bxc3 {[%emt 0:00:10]} O-O {[%emt 0:00:23]} 13. O-O {[%emt 0:00:20]} Rb8 {[%emt 0:00:21]} 14. Qc2 {[%emt 0:00:24]} Re8 {[%emt 0:02:18]} 15. Rfd1 {[%emt 0:00:35]} Re6 {[%emt 0:00:26]} 16. Qa4 {[%emt 0:02:25]} Rb7 {[%emt 0:01:14]} 17. d4 {[%emt 0:00:36]} Qh4 {[%emt 0:00:49]} 18. g3 {[%emt 0:01:52]} Rg6 {[%emt 0:00:57]} 19. dxe5 {[%emt 0:02:30]} Qe7 {[%emt 0:01:08]} 20. Qh4 {[%emt 0:02:12]} f6 {[%emt 0:01:53]} 21. Qc4+ {[%emt 0:01:16]} Kf8 {[%emt 0:01:22]} 22. Qxc6 {[%emt 0:00:22]} Rb6 {[%emt 0:01:24]} 23. Qa8+ {[%emt 0:00:35]} Kf7 {[%emt 0:00:30]} 24. Rd8 {[%emt 0:00:57]} fxe5 {[%emt 0:01:04]} 25. Qd5+ {[%emt 0:00:32]} Rge6 {[%emt 0:00:32]} 26. Rd7 {[%emt 0:00:15]} 1-0

[Event "LJ Slovak Open 2022"]
[Site "Liptovsky Jan"]
[Date "2022.06.24"]
[Round "3.57"]
[White "Magda, Juraj"]
[Black "Lesko Ondrej"]
[Result "1-0"]
[ECO "C45"]
[WhiteElo "1301"]
[BlackElo "1000"]
[Annotator "NA RC"]
[PlyCount "45"]
[EventDate "2022.06.23"]
[EventType "swiss"]
[EventCountry "SVK"]
[SourceTitle "playchess.com"]
[Source "ChessBase"]
[SourceQuality "1"]
[TimeControl "3600+30"]

1. e4 {[%emt 0:00:03]} e5 {[%emt 0:00:15]} 2. Nf3 {[%emt 0:00:30]} Nc6 {[%emt 0:00:36]} 3. d4 {[%emt 0:00:00]} exd4 {[%emt 0:00:30]} 4. Nxd4 {[%emt 0:00:00]} Bc5 {[%emt 0:00:38]} 5. Be3 {[%emt 0:00:03]} Qf6 {[%emt 0:02:18]} 6. c3 {[%emt 0:00:01]} Nge7 {[%emt 0:01:32]} 7. Nc2 {[%emt 0:01:12]} d6 {[%emt 0:02:50]} 8. Bxc5 {[%emt 0:00:32]} dxc5 {[%emt 0:01:17]} 9. Bc4 {[%emt 0:01:38]} Qf4 {[%emt 0:03:34]} 10. Nd2 {[%emt 0:03:20]} Ng8 {[%emt 0:02:25]} 11. Qf3 {[%emt 0:00:16]} Qxf3 {[%emt 0:02:11]} 12. Nxf3 {[%emt 0:00:04]} Bg4 {[%emt 0:01:15]} 13. Ng5 {[%emt 0:02:32]} h6 {[%emt 0:01:20]} 14. Bxf7+ {[%emt 0:01:34]} Kf8 {[%emt 0:01:10]} 15. Bxg8 {[%emt 0:00:26]} Rxg8 {[%emt 0:02:16]} 16. Ne3 {[%emt 0:00:37]} Bd7 {[%emt 0:01:49]} 17. Nf3 {[%emt 0:00:30]} g5 {[%emt 0:00:43]} 18. O-O-O {[%emt 0:00:13]} Re8 {[%emt 0:01:33]} 19. Rxd7 {[%emt 0:00:14]} Rxe4 {[%emt 0:04:34]} 20. Rxc7 {[%emt 0:00:30]} Na5 {[%emt 0:00:47]} 21. Rd1 {[%emt 0:00:00]} Re8 {[%emt 0:02:24]} 22. Rdd7 {[%emt 0:00:06]} h5 {[%emt 0:01:21]} 23. Rf7# {[%emt 0:00:14]} 1-0

[Event "LJ Slovak Open 2022"]
[Site "Liptovsky Jan"]
[Date "2022.06.24"]
[Round "3.58"]
[White "Stricova Julia Nela"]
[Black "Papay Aurel"]
[Result "1-0"]
[ECO "C42"]
[WhiteElo "1149"]
[BlackElo "1294"]
[Annotator "NA RC"]
[PlyCount "49"]
[EventDate "2022.06.23"]
[EventType "swiss"]
[EventCountry "SVK"]
[SourceTitle "playchess.com"]
[Source "ChessBase"]
[SourceQuality "1"]
[TimeControl "3600+30"]

1. e4 {[%emt 0:00:05]} e5 {[%emt 0:00:27]} 2. Nf3 {[%emt 0:00:05]} Nc6 {[%emt 0:00:13]} 3. Nc3 {[%emt 0:00:16]} Nf6 {[%emt 0:00:20]} 4. Bc4 {[%emt 0:00:18]} Bb4 {[%emt 0:00:37]} 5. O-O {[%emt 0:00:47]} O-O {[%emt 0:01:15]} 6. a3 {[%emt 0:00:17]} Bc5 {[%emt 0:04:56]} 7. d3 {[%emt 0:00:54]} h6 {[%emt 0:01:02]} 8. Be3 {[%emt 0:00:19]} Bb6 {[%emt 0:00:56]} 9. Re1 {[%emt 0:00:55]} d6 {[%emt 0:00:57]} 10. h3 {[%emt 0:00:11]} Be6 {[%emt 0:00:25]} 11. Bb3 {[%emt 0:00:59]} Re8 {[%emt 0:01:15]} 12. Nd5 {[%emt 0:01:16]} Bxd5 {[%emt 0:09:18]} 13. Bxd5 {[%emt 0:00:26]} Nxd5 {[%emt 0:01:20]} 14. exd5 {[%emt 0:01:18]} Ne7 {[%emt 0:00:29]} 15. Bxb6 {[%emt 0:00:47]} axb6 {[%emt 0:00:30]} 16. c4 {[%emt 0:00:17]} Ra5 {[%emt 0:00:41]} 17. Qb3 {[%emt 0:01:39]} Qd7 {[%emt 0:02:05]} 18. Re2 {[%emt 0:01:09]} b5 {[%emt 0:00:40]} 19. Rae1 {[%emt 0:02:15]} Ng6 {[%emt 0:04:50]} 20. Qb4 {[%emt 0:02:33]} Ra4 {[%emt 0:02:17]} 21. Qxb5 {[%emt 0:01:29]} Qxb5 {[%emt 0:01:47]} 22. cxb5 {[%emt 0:00:04]} Ra5 {[%emt 0:00:25]} 23. Nd4 {[%emt 0:02:06]} Kf8 {[%emt 0:01:34]} 24. Re4 {[%emt 0:03:52]} exd4 {[%emt 0:00:54]} 25. Rxe8# {[%emt 0:00:59]} 1-0

[Event "LJ Slovak Open 2022"]
[Site "Liptovsky Jan"]
[Date "2022.06.24"]
[Round "3.59"]
[White "Stricova Viktoria Lea"]
[Black "Livnansky, Michal"]
[Result "0-1"]
[ECO "A00"]
[WhiteElo "1025"]
[BlackElo "1279"]
[Annotator "NA RC"]
[PlyCount "46"]
[EventDate "2022.06.23"]
[EventType "swiss"]
[EventCountry "SVK"]
[SourceTitle "playchess.com"]
[Source "ChessBase"]
[SourceQuality "1"]
[TimeControl "3600+30"]

1. e4 {[%emt 0:01:29]} d5 {[%emt 0:00:09]} 2. Nc3 {[%emt 0:00:35]} dxe4 {[%emt 0:00:51]} 3. Nxe4 {[%emt 0:00:16]} Qd5 {[%emt 0:00:22]} 4. d3 {[%emt 0:00:57]} Bf5 {[%emt 0:00:28]} 5. f3 {[%emt 0:02:04]} Nd7 {[%emt 0:01:45]} 6. c4 {[%emt 0:03:12]} Qc6 {[%emt 0:02:25]} 7. Ne2 {[%emt 0:06:29]} e5 {[%emt 0:01:10]} 8. N2g3 {[%emt 0:02:59]} Bb4+ {[%emt 0:01:49]} 9. Bd2 {[%emt 0:00:57]} Bxd2+ {[%emt 0:00:09]} 10. Qxd2 {[%emt 0:00:45]} Bxe4 {[%emt 0:01:04]} 11. dxe4 {[%emt 0:01:09]} Ne7 {[%emt 0:01:57]} 12. Nf5 {[%emt 0:05:56]} Nxf5 {[%emt 0:03:46]} 13. exf5 {[%emt 0:00:35]} O-O {[%emt 0:00:59]} 14. h4 {[%emt 0:02:50]} Rad8 {[%emt 0:02:05]} 15. Rh3 {[%emt 0:01:53]} e4 {[%emt 0:01:05]} 16. Rg3 {[%emt 0:05:42]} exf3 {[%emt 0:01:45]} 17. gxf3 {[%emt 0:01:46]} Rfe8+ {[%emt 0:01:10]} 18. Be2 {[%emt 0:00:37]} Qxc4 {[%emt 0:01:20]} 19. b3 {[%emt 0:01:05]} Qxh4 {[%emt 0:00:45]} 20. Kf2 {[%emt 0:01:29]} Nb6 {[%emt 0:01:49]} 21. Qc3 {[%emt 0:06:14]} Qh2+ {[%emt 0:01:06]} 22. Rg2 {[%emt 0:01:24]} Rxe2+ {[%emt 0:00:09]} 23. Kf1 {[%emt 0:03:27]} Qxg2# {[%emt 0:00:09]} 0-1

[Event "LJ Slovak Open 2022"]
[Site "Liptovsky Jan"]
[Date "2022.06.24"]
[Round "3.60"]
[White "Moravcik Alex"]
[Black "Hudak, Michal"]
[Result "0-1"]
[ECO "A00"]
[WhiteElo "1000"]
[BlackElo "1169"]
[Annotator "NA RC"]
[PlyCount "45"]
[EventDate "2022.06.23"]
[EventType "swiss"]
[EventCountry "SVK"]
[SourceTitle "playchess.com"]
[Source "ChessBase"]
[SourceQuality "1"]
[TimeControl "3600+30"]

1. g3 {[%emt 0:00:05]} e5 {[%emt 0:00:29]} 2. Bg2 {[%emt 0:00:15]} d5 {[%emt 0:00:16]} 3. d3 {[%emt 0:00:21]} Nc6 {[%emt 0:00:35]} 4. c3 {[%emt 0:00:12]} Nf6 {[%emt 0:00:40]} 5. Qc2 {[%emt 0:00:14]} Bd6 {[%emt 0:01:00]} 6. e4 {[%emt 0:00:21]} d4 {[%emt 0:00:30]} 7. Nf3 {[%emt 0:00:49]} Bg4 {[%emt 0:00:56]} 8. O-O {[%emt 0:00:34]} Qd7 {[%emt 0:00:28]} 9. Nbd2 {[%emt 0:00:25]} h5 {[%emt 0:03:12]} 10. Nb3 {[%emt 0:00:57]} Bxf3 {[%emt 0:01:38]} 11. Bxf3 {[%emt 0:01:04]} h4 {[%emt 0:00:32]} 12. Bg5 {[%emt 0:00:52]} hxg3 {[%emt 0:04:11]} 13. fxg3 {[%emt 0:01:32]} O-O-O {[%emt 0:02:15]} 14. Qe2 {[%emt 0:02:27]} Kb8 {[%emt 0:03:59]} 15. a4 {[%emt 0:00:37]} Be7 {[%emt 0:00:54]} 16. Bxf6 {[%emt 0:01:10]} gxf6 {[%emt 0:00:17]} 17. a5 {[%emt 0:00:33]} Rdg8 {[%emt 0:03:55]} 18. a6 {[%emt 0:02:01]} b6 {[%emt 0:00:54]} 19. c4 {[%emt 0:01:08]} f5 {[%emt 0:05:20]} 20. c5 {[%emt 0:01:42]} f4 {[%emt 0:02:51]} 21. Kf2 {[%emt 0:01:27]} fxg3+ {[%emt 0:00:21]} 22. hxg3 {[%emt 0:00:39]} Rh2+ {[%emt 0:00:28]} 23. Ke1 {[%emt 0:01:03]} 0-1

[Event "LJ Slovak Open 2022"]
[Site "Liptovsky Jan"]
[Date "2022.06.25"]
[Round "4.1"]
[White "Manik, Mikulas"]
[Black "Varga, Lukas"]
[Result "1-0"]
[ECO "B92"]
[WhiteElo "2368"]
[BlackElo "2136"]
[Annotator "RC"]
[PlyCount "40"]
[EventDate "2022.06.23"]
[EventType "swiss"]
[EventCountry "SVK"]
[SourceTitle "playchess.com"]
[Source "ChessBase"]
[SourceQuality "1"]
[TimeControl "3600+30"]

1. e4 {[%emt 0:02:35]} c5 {[%emt 0:00:09]} 2. Nf3 {[%emt 0:00:26]} d6 {[%emt 0:00:18]} 3. d4 {[%emt 0:00:24]} cxd4 {[%emt 0:00:06]} 4. Nxd4 {[%emt 0:00:04]} Nf6 {[%emt 0:00:10]} 5. Nc3 {[%emt 0:00:02]} a6 {[%emt 0:00:05]} 6. Be2 {[%emt 0:00:05]} e5 {[%emt 0:01:02]} 7. Nb3 {[%emt 0:00:03]} Be7 {[%emt 0:00:09]} 8. Be3 {[%emt 0:00:05]} O-O {[%emt 0:01:03]} 9. g4 {[%emt 0:00:38]} Nbd7 {[%emt 0:05:00]} 10. g5 {[%emt 0:01:55]} Ne8 {[%emt 0:00:12]} 11. Qd2 {[%emt 0:00:33]} f5 {[%emt 0:01:14]} 12. exf5 {[%emt 0:01:21]} Rxf5 {[%emt 0:01:05]} 13. Rg1 {[%emt 0:01:21]} Nf8 {[%emt 0:03:23]} 14. O-O-O {[%emt 0:01:38]} Ne6 {[%emt 0:04:07]} 15. Bg4 {[%emt 0:06:24]} Rf7 {[%emt 0:04:17]} 16. Nd5 {[%emt 0:00:13]} Kh8 {[%emt 0:07:06]} 17. f4 {[%emt 0:28:27]} Nc5 {[%emt 0:08:25]} 18. g6 {[%emt 0:12:11]} Bxg4 {[%emt 0:09:55]} 19. gxf7 {[%emt 0:00:26]} Nxb3+ {[%emt 0:00:22]} 20. axb3 {[%emt 0:00:11]} Bxd1 {[%emt 0:00:23]} 1-0

[Event "LJ Slovak Open 2022"]
[Site "Liptovsky Jan"]
[Date "2022.06.25"]
[Round "4.2"]
[White "Wisniewski, Michal"]
[Black "Jablonicky, Martin"]
[Result "1-0"]
[ECO "D02"]
[WhiteElo "2073"]
[BlackElo "2377"]
[Annotator "RC"]
[PlyCount "65"]
[EventDate "2022.06.23"]
[EventType "swiss"]
[EventCountry "SVK"]
[SourceTitle "playchess.com"]
[Source "ChessBase"]
[SourceQuality "1"]
[TimeControl "3600+30"]

1. Nf3 {[%emt 0:02:11]} d5 {[%emt 0:00:07]} 2. g3 {[%emt 0:00:54]} Nc6 {[%emt 0:00:13]} 3. d4 {[%emt 0:01:06]} Bf5 {[%emt 0:00:05]} 4. c3 {[%emt 0:00:28]} Nf6 {[%emt 0:02:08]} 5. Bg2 {[%emt 0:00:52]} e6 {[%emt 0:00:11]} 6. O-O {[%emt 0:00:52]} Bd6 {[%emt 0:02:28]} 7. Bg5 {[%emt 0:01:08]} h6 {[%emt 0:00:45]} 8. Bxf6 {[%emt 0:00:06]} Qxf6 {[%emt 0:00:06]} 9. Nbd2 {[%emt 0:00:04]} g5 {[%emt 0:05:27]} 10. Re1 {[%emt 0:00:33]} Qg6 {[%emt 0:00:05]} 11. e4 {[%emt 0:04:02]} dxe4 {[%emt 0:01:33]} 12. Nxe4 {[%emt 0:00:05]} Bxe4 {[%emt 0:03:56]} 13. Ne5 {[%emt 0:00:13]} Nxe5 {[%emt 0:20:20]} 14. Bxe4 {[%emt 0:00:10]} Qf6 {[%emt 0:00:04]} 15. dxe5 {[%emt 0:00:17]} Bxe5 {[%emt 0:00:06]} 16. Bxb7 {[%emt 0:00:05]} Rb8 {[%emt 0:00:42]} 17. Qa4+ {[%emt 0:00:44]} Kf8 {[%emt 0:02:18]} 18. Qxa7 {[%emt 0:00:08]} Kg7 {[%emt 0:00:04]} 19. a4 {[%emt 0:01:51]} h5 {[%emt 0:03:12]} 20. a5 {[%emt 0:00:13]} h4 {[%emt 0:00:04]} 21. a6 {[%emt 0:00:06]} hxg3 {[%emt 0:00:12]} 22. hxg3 {[%emt 0:00:06]} Qf5 {[%emt 0:17:18]} 23. Qe3 {[%emt 0:11:22]} f6 {[%emt 0:01:53]} 24. Qf3 {[%emt 0:01:23]} Qc2 {[%emt 0:07:46]} 25. a7 {[%emt 0:05:21]} Qxb2 {[%emt 0:00:07]} 26. axb8=Q {[%emt 0:00:25]} Rxb8 {[%emt 0:00:02]} 27. Rab1 {[%emt 0:00:25]} Qc2 {[%emt 0:00:16]} 28. Be4 {[%emt 0:00:20]} Rxb1 {[%emt 0:00:07]} 29. Rxb1 {[%emt 0:00:10]} Qa2 {[%emt 0:00:31]} 30. Rd1 {[%emt 0:00:38]} f5 {[%emt 0:00:16]} 31. Rd7+ {[%emt 0:00:06]} Kg6 {[%emt 0:00:32]} 32. g4 {[%emt 0:00:29]} fxe4 {[%emt 0:00:37]} 33. Qf7+ {[%emt 0:00:04]} 1-0

[Event "LJ Slovak Open 2022"]
[Site "Liptovsky Jan"]
[Date "2022.06.25"]
[Round "4.3"]
[White "Karas, Marek"]
[Black "Janousek, Petr"]
[Result "1-0"]
[ECO "A13"]
[WhiteElo "2292"]
[BlackElo "2099"]
[Annotator "RC"]
[PlyCount "73"]
[EventDate "2022.06.23"]
[EventType "swiss"]
[EventCountry "SVK"]
[SourceTitle "playchess.com"]
[Source "ChessBase"]
[SourceQuality "1"]
[TimeControl "3600+30"]

1. e3 {[%emt 0:00:04]} d5 {[%emt 0:01:52]} 2. Nf3 {[%emt 0:00:07]} Nf6 {[%emt 0:00:55]} 3. c4 {[%emt 0:00:27]} e6 {[%emt 0:00:21]} 4. b3 {[%emt 0:00:28]} Be7 {[%emt 0:02:55]} 5. Bb2 {[%emt 0:00:55]} O-O {[%emt 0:00:07]} 6. Rg1 {[%emt 0:01:01]} c5 {[%emt 0:09:08]} 7. g4 {[%emt 0:01:31]} Nc6 {[%emt 0:00:07]} 8. g5 {[%emt 0:01:52]} Ne8 {[%emt 0:00:42]} 9. cxd5 {[%emt 0:04:20]} exd5 {[%emt 0:00:43]} 10. Nc3 {[%emt 0:00:38]} Be6 {[%emt 0:03:45]} 11. h4 {[%emt 0:04:03]} Nd6 {[%emt 0:08:35]} 12. Bd3 {[%emt 0:05:22]} Bf5 {[%emt 0:10:59]} 13. Bxf5 {[%emt 0:01:14]} Nxf5 {[%emt 0:00:21]} 14. a3 {[%emt 0:06:17]} Rc8 {[%emt 0:03:13]} 15. Qc2 {[%emt 0:02:43]} Qd7 {[%emt 0:00:02]} 16. Qd3 {[%emt 0:05:42]} Rfd8 {[%emt 0:02:35]} 17. Ne2 {[%emt 0:01:25]} b5 {[%emt 0:09:24]} 18. h5 {[%emt 0:05:53]} c4 {[%emt 0:00:30]} 19. Qc2 {[%emt 0:03:16]} b4 {[%emt 0:05:05]} 20. g6 {[%emt 0:02:20]} hxg6 {[%emt 0:04:11]} 21. hxg6 {[%emt 0:00:27]} f6 {[%emt 0:00:24]} 22. bxc4 {[%emt 0:02:24]} bxa3 {[%emt 0:00:10]} 23. Bc3 {[%emt 0:01:15]} Nb4 {[%emt 0:00:54]} 24. Bxb4 {[%emt 0:00:53]} Bxb4 {[%emt 0:00:01]} 25. Ned4 {[%emt 0:01:46]} Nxd4 {[%emt 0:00:51]} 26. Nxd4 {[%emt 0:00:13]} Rxc4 {[%emt 0:00:49]} 27. Qd3 {[%emt 0:00:28]} Rdc8 {[%emt 0:00:33]} 28. Ke2 {[%emt 0:01:02]} Bc5 {[%emt 0:03:01]} 29. Nf5 {[%emt 0:00:29]} Re4 {[%emt 0:00:20]} 30. Ng3 {[%emt 0:00:30]} Ree8 {[%emt 0:00:17]} 31. Rh1 {[%emt 0:00:55]} Qg4+ {[%emt 0:01:05]} 32. f3 {[%emt 0:01:52]} Qc4 {[%emt 0:00:15]} 33. Qxc4 {[%emt 0:00:08]} dxc4 {[%emt 0:00:01]} 34. Nf5 {[%emt 0:00:16]} c3 {[%emt 0:01:18]} 35. Rh7 {[%emt 0:00:38]} cxd2 {[%emt 0:01:12]} 36. Rxg7+ {[%emt 0:00:12]} Kf8 {[%emt 0:00:01]} 37. Rf7+ {[%emt 0:00:10]} 1-0

[Event "LJ Slovak Open 2022"]
[Site "Liptovsky Jan"]
[Date "2022.06.25"]
[Round "4.4"]
[White "Hurtuk, Radovan"]
[Black "Holly, Andrej"]
[Result "1/2-1/2"]
[ECO "B50"]
[WhiteElo "2057"]
[BlackElo "2214"]
[Annotator "RC"]
[PlyCount "108"]
[EventDate "2022.06.23"]
[EventType "swiss"]
[EventCountry "SVK"]
[SourceTitle "playchess.com"]
[Source "ChessBase"]
[SourceQuality "1"]
[TimeControl "3600+30"]

1. e4 {[%emt 0:00:06]} c5 {[%emt 0:00:03]} 2. Nf3 {[%emt 0:00:38]} Nc6 {[%emt 0:00:02]} 3. b3 {[%emt 0:00:27]} e5 {[%emt 0:04:59]} 4. Bb2 {[%emt 0:02:37]} d6 {[%emt 0:00:06]} 5. Bc4 {[%emt 0:01:47]} g6 {[%emt 0:00:41]} 6. Nc3 {[%emt 0:00:31]} Bg7 {[%emt 0:00:12]} 7. Nd5 {[%emt 0:01:36]} Nge7 {[%emt 0:00:28]} 8. h4 {[%emt 0:01:29]} h5 {[%emt 0:07:28]} 9. Ng5 {[%emt 0:01:11]} O-O {[%emt 0:00:55]} 10. Qf3 {[%emt 0:02:19]} Nxd5 {[%emt 0:00:23]} 11. Bxd5 {[%emt 0:00:30]} Qe7 {[%emt 0:00:54]} 12. Bxf7+ {[%emt 0:07:21]} Rxf7 {[%emt 0:00:26]} 13. Qxf7+ {[%emt 0:00:05]} Qxf7 {[%emt 0:00:03]} 14. Nxf7 {[%emt 0:00:11]} Kxf7 {[%emt 0:00:01]} 15. Ke2 {[%emt 0:07:12]} Be6 {[%emt 0:02:02]} 16. c4 {[%emt 0:02:03]} a6 {[%emt 0:01:02]} 17. Bc3 {[%emt 0:02:37]} b5 {[%emt 0:00:19]} 18. d3 {[%emt 0:00:04]} Bf6 {[%emt 0:02:50]} 19. g3 {[%emt 0:06:07]} Bd8 {[%emt 0:02:16]} 20. Raf1 {[%emt 0:02:47]} Ba5 {[%emt 0:01:52]} 21. Bb2 {[%emt 0:02:37]} Rb8 {[%emt 0:01:12]} 22. Rb1 {[%emt 0:02:45]} Ke7 {[%emt 0:03:45]} 23. f3 {[%emt 0:01:05]} Bc7 {[%emt 0:05:08]} 24. Bc3 {[%emt 0:02:51]} a5 {[%emt 0:04:24]} 25. Rhg1 {[%emt 0:00:24]} bxc4 {[%emt 0:01:23]} 26. bxc4 {[%emt 0:00:57]} a4 {[%emt 0:03:43]} 27. Rxb8 {[%emt 0:00:23]} Bxb8 {[%emt 0:00:10]} 28. Rb1 {[%emt 0:00:59]} Bc8 {[%emt 0:00:31]} 29. Kd2 {[%emt 0:04:22]} Bc7 {[%emt 0:00:13]} 30. Ke2 {[%emt 0:00:55]} Ba5 {[%emt 0:01:02]} 31. Bxa5 {[%emt 0:02:22]} Nxa5 {[%emt 0:00:02]} 32. Rb8 {[%emt 0:00:30]} Bd7 {[%emt 0:00:53]} 33. Kd2 {[%emt 0:04:34]} Nc6 {[%emt 0:00:17]} 34. Rb1 {[%emt 0:01:21]} Nd4 {[%emt 0:02:47]} 35. Ke3 {[%emt 0:00:26]} Kf6 {[%emt 0:05:46]} 36. Rb2 {[%emt 0:01:33]} Bc6 {[%emt 0:06:52]} 37. Rb1 {[%emt 0:03:23]} Ke6 {[%emt 0:00:20]} 38. Rb2 {[%emt 0:00:15]} a3 {[%emt 0:01:03]} 39. Rb6 {[%emt 0:01:28]} Nc2+ {[%emt 0:00:05]} 40. Kd2 {[%emt 0:00:07]} Nb4 {[%emt 0:00:03]} 41. Kc3 {[%emt 0:01:07]} Ba4 {[%emt 0:00:30]} 42. Kd2 {[%emt 0:01:15]} Bb3 {[%emt 0:01:18]} 43. Rb7 {[%emt 0:01:12]} Bxa2 {[%emt 0:02:09]} 44. Ra7 {[%emt 0:00:08]} Bb1 {[%emt 0:00:50]} 45. Rxa3 {[%emt 0:00:13]} Bc2 {[%emt 0:03:05]} 46. Rc3 {[%emt 0:00:29]} Ba4 {[%emt 0:00:04]} 47. Ra3 {[%emt 0:00:06]} Bd7 {[%emt 0:00:14]} 48. Ra8 {[%emt 0:00:18]} Ke7 {[%emt 0:00:10]} 49. Ke3 {[%emt 0:00:34]} Nc6 {[%emt 0:00:18]} 50. Ra6 {[%emt 0:00:24]} Nd4 {[%emt 0:00:31]} 51. Ra8 {[%emt 0:00:14]} Nc2+ {[%emt 0:01:22]} 52. Kd2 {[%emt 0:00:10]} Nb4 {[%emt 0:00:07]} 53. Ke3 {[%emt 0:00:27]} Bh3 {[%emt 0:00:43]} 54. Ke2 {[%emt 0:01:16]} Be6 {[%emt 0:01:59]} 1/2-1/2